Cogmind - Beta 11 X7 @@@ ROGUE MODE // 2021.09.17 @ 15:15:20 Player: Stryker Result: Self-destructed Performance ------------- Evolutions (5) 2500 Regions Visited (16) 3200 Robots Destroyed (117) 585 Value Destroyed (2705) 2705 Prototype IDs (217) 4340 Alien Tech Used (0) 0 Bonus (4289) 4289 TOTAL SCORE: 17619 Bonus ------- High Alert Combat Kills 189 Met Data Miner 300 Used Data Conduit 3000 Met Imprinter 300 Pursued by Intercept 500 Cogmind --------- Core Integrity 1000/1000 Matter 295/300 Energy 170/170 System Corruption 0% Temperature Cool (0) Movement Flying (100) Ox1 Location -5/Factory Parts ------- > --- POWER (1) -------- Micro Fission Core > --- PROPULSION (5) --- Improved Flight Unit Improved Flight Unit Improved Flight Unit Improved VTOL Module Improved VTOL Module > --- UTILITY (9) ------ Medium Storage Unit Structural Scanner Advanced Signal Interpreter Hacking Suite Hacking Suite Hacking Suite System Mapper System Shield > --- WEAPON (2) ------- Mini Grenade Launcher Katana > --- INVENTORY (10) --- Micro Fission Core Improved Flight Unit Xenon Bombardment Thruster Biomechanical Wings Advanced Sensor Array Improved Transmission Jammer Improved Propulsion Shielding Improved Utility Shielding Improved Light Armor Plating Makeshift Armor Plating Peak State ------------ > --- POWER ------------ Micro Fission Core > --- PROPULSION ------- Improved Flight Unit Improved Flight Unit Improved Flight Unit Improved VTOL Module Improved VTOL Module > --- UTILITY ---------- Medium Storage Unit Experimental Sensor Array Advanced Signal Interpreter Improved Transmission Jammer Hacking Suite Hacking Suite Hacking Suite System Mapper System Shield > --- WEAPON ----------- Mini Grenade Launcher Katana > --- INVENTORY -------- Micro Fission Core Improved Flight Unit Xenon Bombardment Thruster Biomechanical Wings Structural Scanner Advanced Sensor Array Improved Propulsion Shielding Improved Utility Shielding Improved Light Armor Plating Makeshift Armor Plating [Rating: 72] Favorites ----------- Power Ion Engine Engine Ion Engine Power Core Light Nuclear Core Propulsion Light Treads Treads Light Treads Leg Aluminum Leg Wheel Wheel Flight Unit Improved Flight Unit Utility Hacking Suite Device Improved Sensor Array Storage High-capacity Storage Unit Processor Machine Analyzer Hackware Hacking Suite Protection Improved Utility Shielding Weapon Improved Assault Rifle Energy Gun Spread Laser Ballistic Gun Improved Assault Rifle Ballistic Cannon Improved Light Cannon Launcher Mini Grenade Launcher Impact Weapon Mace Slashing Weapon Katana Build | -11 -10 -9 -8 -7 -7 -7 -7 -7 -7 -6 -6 -6 -6 -6 -5 -5 ------- Run | Scr Mat Mat Mat Fac Was Fac Low Low Zio Pro Fac Low Low Dat Pro Fac Slots Evolved 10 | . . 2 2 2 . . . . . . 2 . . . . 2 Power . | . . . . . . . . . . . . . . . . . Propulsion 3 | . . 1 1 . . . . . . . 1 . . . . . Utility 7 | . . 1 1 2 . . . . . . 1 . . . . 2 Weapon . | . . . . . . . . . . . . . . . . . Parts Attached 168 | 1 20 33 50 2 . 5 11 4 1 10 12 4 2 2 2 9 Power 14 | . 2 3 5 . . . 2 . . . 1 . . . . 1 Engine 10 | . 2 2 5 . . . 1 . . . . . . . . . Core 4 | . . 1 . . . . 1 . . . 1 . . . . 1 Reactor . | . . . . . . . . . . . . . . . . . Propulsion 36 | . 8 9 17 . . . . . . . 2 . . . . . Treads 17 | . 3 6 8 . . . . . . . . . . . . . Leg . | . . . . . . . . . . . . . . . . . Wheel 10 | . 4 3 3 . . . . . . . . . . . . . Hover . | . . . . . . . . . . . . . . . . . Flight 9 | . 1 . 6 . . . . . . . 2 . . . . . Utility 80 | 1 4 7 15 2 . 4 8 3 1 10 8 4 2 2 2 7 Device 38 | 1 . 2 5 1 . . 7 2 . 6 5 2 2 . 2 3 Storage 5 | . 2 . 2 . . . . . . . . . . . . 1 Processor 4 | . . . 1 1 . 1 . . . . 1 . . . . . Hackware 5 | . . . . . . 2 . . . . . . . . . 3 Protection 28 | . 2 5 7 . . 1 1 1 1 4 2 2 . 2 . . Artifact . | . . . . . . . . . . . . . . . . . Weapon 38 | . 6 14 13 . . 1 1 1 . . 1 . . . . 1 Energy Gun 3 | . 3 . . . . . . . . . . . . . . . Energy Cannon . | . . . . . . . . . . . . . . . . . Ballistic Gun 18 | . 3 8 7 . . . . . . . . . . . . . Ballistic Cannon 2 | . . 2 . . . . . . . . . . . . . . Launcher 6 | . . . 3 . . 1 . . . . 1 . . . . 1 Special Weapon . | . . . . . . . . . . . . . . . . . Impact Weapon 6 | . . 4 2 . . . . . . . . . . . . . Slashing Weapon 3 | . . . 1 . . . 1 1 . . . . . . . . Piercing Weapon . | . . . . . . . . . . . . . . . . . Special Melee Weapon . | . . . . . . . . . . . . . . . . . Unidentified Prototypes 3 | . 1 . 1 . . . . . . . . . . . . 1 Parts Lost 14 | . 2 5 6 . . . . . . . . . . . . 1 Power 3 | . 1 1 1 . . . . . . . . . . . . . Propulsion 3 | . . 2 1 . . . . . . . . . . . . . Utility 6 | . . 2 3 . . . . . . . . . . . . 1 Weapon 2 | . 1 . 1 . . . . . . . . . . . . . Highest Loss Streak 3 | . 2 2 3 . . . . . . . . . . . . 1 Average Slot Usage (%) 97 | . 99 98 98 92 92 92 99 92 92 92 97 100 100 100 100 97 Engine 6 | . 13 4 8 7 7 7 6 7 7 7 . . . . . . Core 2 | . . 6 . . . . . . . . 5 6 6 6 6 5 Treads 12 | . 12 21 20 . . . . . . . . . . . . . Wheel 7 | . 13 10 13 . . . . . . . . . . . . . Flight 11 | . . . 1 30 30 30 30 30 30 30 33 33 33 33 33 29 Device 6 | . 1 2 5 23 23 11 7 6 4 5 12 11 12 8 13 11 Storage 9 | . 14 11 9 7 7 7 7 7 7 7 6 6 6 6 6 5 Processor 4 | . . . . 15 15 15 15 15 15 15 13 13 13 13 13 6 Hackware 5 | . . . . . . 10 15 15 15 15 13 13 13 13 13 26 Protection 11 | . 12 18 19 . . . . . 2 1 . 1 . 4 . . Energy Gun 2 | . 10 2 . . . . . . . . . . . . . . Ballistic Gun 10 | . 17 17 14 . . . . . . . . . . . . . Launcher 1 | . . . 1 . . . 7 2 . . 3 6 6 6 6 4 Slashing Weapon 2 | . . . . 7 7 6 6 4 7 7 6 6 6 6 6 5 Naked Turns . | . . . . . . . . . . . . . . . . . Heaviest Build 109 | 11 52 63 109 20 20 20 19 19 20 20 24 24 23 25 21 21 Greatest Support 28 | 20 20 16 28 20 20 20 20 20 20 20 25 25 25 25 25 25 Greatest Overweight (x) 6 | . 5 6 5 . . . . . . . . . . . . . Average Overweight (x) 1 | . 3 5 2 . . . . . . . . . . . . . Largest Inventory Capacity 25 | 8 20 20 25 10 10 10 10 10 10 10 10 10 10 10 10 10 Average Capacity 15 | 8 15 20 22 10 10 10 10 10 10 10 10 10 10 10 10 10 Most Carried 25 | 8 20 20 25 10 10 10 10 10 10 10 10 10 10 10 10 10 Average Carried 15 | 6 15 19 21 9 10 9 9 10 10 10 9 10 10 9 10 9 Final Capacity 20 | 8 20 20 10 10 10 10 10 10 10 10 10 10 10 10 10 10 Final Carried 20 | 8 20 20 10 10 10 10 10 10 10 10 10 10 10 10 10 10 Class Distribution -------------------- 48% | Mutant 15% | Scavenger-Scout 14% | Scavenger-Mutant 9% | Hacker-Scout 6% | Scout 3% | Wizard-Scout Dominant Class ---------------- Mutant | -10/Materials Mutant | -9/Materials Mutant | -8/Materials Scout | -7/Factory Scout | -7/Waste Scavenger-Scout | -7/Factory Scavenger-Scout | -7/Lower Caves Scavenger-Scout | -7/Lower Caves Scavenger-Scout | -7/Zion Scavenger-Scout | -6/Proximity Caves Hacker-Scout | -6/Factory Hacker-Scout | -6/Lower Caves Hacker-Scout | -6/Lower Caves Hacker-Scout | -6/Data Miner Hacker-Scout | -5/Proximity Caves Wizard-Scout | -5/Factory Resources | -11 -10 -9 -8 -7 -7 -7 -7 -7 -7 -6 -6 -6 -6 -6 -5 -5 ----------- Run | Scr Mat Mat Mat Fac Was Fac Low Low Zio Pro Fac Low Low Dat Pro Fac Matter Collected 3440 | 232 288 1076 1173 51 . 30 130 50 10 . 190 50 40 20 20 80 Remotely 32 | 32 . . . . . . . . . . . . . . . . Salvage Created 4204 | 84 449 1373 1508 82 . 60 87 . . . 199 54 . 20 . 288 Parts 248 | 4 29 100 85 4 . 9 4 . . . 4 . . 2 . 7 Haulers Intercepted 10 | . 2 3 5 . . . . . . . . . . . . . Recyclers Shooed 3 | . . 1 1 . . 1 . . . . . . . . . . Parts Field Recycled . | . . . . . . . . . . . . . . . . . Retrieved Matter . | . . . . . . . . . . . . . . . . . Parts Self-Destructed 5 | . . . . . . . 5 . . . . . . . . . Prevented . | . . . . . . . . . . . . . . . . . Kills | -11 -10 -9 -8 -7 -7 -7 -7 -7 -7 -6 -6 -6 -6 -6 -5 -5 ------- Run | Scr Mat Mat Mat Fac Was Fac Low Low Zio Pro Fac Low Low Dat Pro Fac Combat Hostiles Destroyed 70 | . 9 34 25 . . . 2 . . . . . . . . . Guns 57 | . 9 31 17 . . . . . . . . . . . . . Cannons 5 | . . 3 2 . . . . . . . . . . . . . AOE 8 | . . . 6 . . . 2 . . . . . . . . . Classes Destroyed 12 | 2 6 1 2 . . . 1 . . . . . . . . . Worker 9 | . 2 . 6 1 . . . . . . . . . . . . Tunneler 1 | 1 . . . . . . . . . . . . . . . . Hauler 10 | . 2 3 5 . . . . . . . . . . . . . Recycler 8 | 1 . 1 2 1 . . . . . . 1 . . . . 2 Mechanic 1 | . . . 1 . . . . . . . . . . . . . Operator 6 | . 2 2 . . . 2 . . . . . . . . . . Watcher 11 | . 2 5 2 . . 1 . . . . 1 . . . . . Swarmer 24 | . 3 12 7 . . . 2 . . . . . . . . . Grunt 30 | . 6 13 11 . . . . . . . . . . . . . Sentry 14 | . . 9 5 . . . . . . . . . . . . . Hunter 2 | . . . 2 . . . . . . . . . . . . . Packrat 1 | . . . . . . . . . . . . 1 . . . . Samaritan 1 | . . . . . . . 1 . . . . . . . . . Best Kill Streak 8 | 1 6 8 7 1 . 1 2 . . . 1 . . 1 . 1 Combat Bots Only 8 | . 5 8 5 . . . 2 . . . . . . . . . Max Kills in Single Turn 3 | 1 1 1 3 1 . 1 2 . . . 1 1 . 1 . 1 Gunslinging . | . . . . . . . . . . . . . . . . . Exploded 3 | . . . 3 . . . 2 . . . . . . . . . Melee . | . . . . . . . . . . . . . . . . . Uniques/NPCs Destroyed 1 | . . . . . . . . . . . . . . 1 . . Data Miner (-6/Data Miner) Combat | -11 -10 -9 -8 -7 -7 -7 -7 -7 -7 -6 -6 -6 -6 -6 -5 -5 -------- Run | Scr Mat Mat Mat Fac Was Fac Low Low Zio Pro Fac Low Low Dat Pro Fac Damage Taken 3831 | . 421 1527 1509 . . 96 49 51 . . . . . 88 . 90 Core 570 | . 50 264 177 . . 68 11 . . . . . . . . . Absorbed by Shields . | . . . . . . . . . . . . . . . . . Core Remaining (%) 78 | 100 80 34 67 . . . . . . 88 . . . . 100 . Volleys Fired 279 | 11 44 121 102 . . . 1 . . . . . . . . . Largest 2 | 2 2 2 2 . . . 1 . . . . . . . . . Hottest 88 | 40 88 88 62 . . . 30 . . . . . . . . . Shots Fired 553 | 22 88 242 200 . . . 1 . . . . . . . . . Gun 514 | 22 88 218 186 . . . . . . . . . . . . . Cannon 34 | . . 24 10 . . . . . . . . . . . . . Launcher 5 | . . . 4 . . . 1 . . . . . . . . . Special . | . . . . . . . . . . . . . . . . . Kinetic 504 | 22 62 224 196 . . . . . . . . . . . . . Thermal 44 | . 26 18 . . . . . . . . . . . . . . Explosive 5 | . . . 4 . . . 1 . . . . . . . . . Electromagnetic . | . . . . . . . . . . . . . . . . . Robot Hit Streak 31 | 3 12 31 15 . . . . . . . . . . . . . Robot Miss Streak 9 | 2 7 9 2 . . . . . . . . . . . . . Penetration Max 1 | . . . 1 . . . . . . . . . . . . . Secondary Targets 2 | . . 1 1 . . . . . . . . . . . . . Max Gunslinging Chain 1 | . . 1 1 . . . . . . . . . . . . . Shots Hit Robots 414 | 13 70 169 142 4 . 5 2 . . . 2 1 . 1 . 5 Core Hits 216 | 4 48 85 67 1 . 3 3 . . . 2 . . 1 . 2 Critical Kills 1 | . . . 1 . . . . . . . . . . . . . Critical Parts Destroyed 3 | . 2 1 . . . . . . . . . . . . . . Critical Strikes 6 | . 2 2 2 . . . . . . . . . . . . . Destroy 4 | . 2 1 1 . . . . . . . . . . . . . Blast 2 | . . 1 1 . . . . . . . . . . . . . Melee Attacks 94 | . . 8 7 11 . 12 9 2 . 2 16 2 . 8 . 17 Impact 10 | . . 8 2 . . . . . . . . . . . . . Slashing 84 | . . . 5 11 . 12 9 2 . 2 16 2 . 8 . 17 Piercing . | . . . . . . . . . . . . . . . . . Sneak Attacks 13 | . . . 1 3 . 2 2 . . . 1 1 . 1 . 2 Combat Hostiles . | . . . . . . . . . . . . . . . . . Follow-up Attacks . | . . . . . . . . . . . . . . . . . Damage Inflicted 8252 | 118 792 2530 3104 350 . 324 315 . . . 154 121 . 94 . 350 Guns 5354 | 118 792 2167 2277 . . . . . . . . . . . . . Cannons 505 | . . 363 142 . . . . . . . . . . . . . Explosions 653 | . . . 550 . . . 103 . . . . . . . . . Melee 1740 | . . . 135 350 . 324 212 . . . 154 121 . 94 . 350 Ramming . | . . . . . . . . . . . . . . . . . Kinetic 5374 | 118 482 2355 2419 . . . . . . . . . . . . . Thermal 485 | . 310 175 . . . . . . . . . . . . . . Explosive 653 | . . . 550 . . . 103 . . . . . . . . . Electromagnetic . | . . . . . . . . . . . . . . . . . Impact . | . . . . . . . . . . . . . . . . . Slashing 1740 | . . . 135 350 . 324 212 . . . 154 121 . 94 . 350 Piercing . | . . . . . . . . . . . . . . . . . Highest Corruption 1 | . . . 1 . . . . . . . . . . . . . Average Corruption 1 | . . . 1 . . . . . . . . . . . . . Corruption Purged . | . . . . . . . . . . . . . . . . . Effects 1 | . . . 1 . . . . . . . . . . . . . Energy Discharges 1 | . . . 1 . . . . . . . . . . . . . Overload Shots . | . . . . . . . . . . . . . . . . . Overflow Damage 641 | . . . 78 148 . 72 185 . . . . 116 . . . 42 Projectiles . | . . . . . . . . . . . . . . . . . Explosions 18 | . . . 18 . . . . . . . . . . . . . Melee 623 | . . . 60 148 . 72 185 . . . . 116 . . . 42 Knockbacks 7 | . . 5 2 . . . . . . . . . . . . . Impact . | . . . . . . . . . . . . . . . . . Kinetic 7 | . . 5 2 . . . . . . . . . . . . . Secondary . | . . . . . . . . . . . . . . . . . Self-Inflicted Damage 33 | . . . . . . . 33 . . . . . . . . . Shots 1 | . . . . . . . 1 . . . . . . . . . Rammed . | . . . . . . . . . . . . . . . . . Targets Rammed . | . . . . . . . . . . . . . . . . . Kicked . | . . . . . . . . . . . . . . . . . Crushed . | . . . . . . . . . . . . . . . . . Highest Temperature 267 | . 198 267 108 . . . . 7 . . . . . . . . Average Temperature 49 | . 42 55 36 . . . . 6 . . . . . . . . Received Heat Transfer 1419 | . 180 615 576 . . 18 . 18 . . . . . 12 . . Siege Activations . | . . . . . . . . . . . . . . . . . Robots Corrupted . | . . . . . . . . . . . . . . . . . Combat Hostiles . | . . . . . . . . . . . . . . . . . Parts Fried . | . . . . . . . . . . . . . . . . . Impact Corruptions . | . . . . . . . . . . . . . . . . . Robots Melted . | . . . . . . . . . . . . . . . . . Combat Hostiles . | . . . . . . . . . . . . . . . . . Parts Melted 1 | . 1 . . . . . . . . . . . . . . . Heat Transferred 637 | . 422 215 . . . . . . . . . . . . . . Parts Sabotaged . | . . . . . . . . . . . . . . . . . Parts Stolen . | . . . . . . . . . . . . . . . . . Parts Stripped . | . . . . . . . . . . . . . . . . . Power Chain Reactions . | . . . . . . . . . . . . . . . . . Missiles Intercepted . | . . . . . . . . . . . . . . . . . Alert | -11 -10 -9 -8 -7 -7 -7 -7 -7 -7 -6 -6 -6 -6 -6 -5 -5 ------- Run | Scr Mat Mat Mat Fac Was Fac Low Low Zio Pro Fac Low Low Dat Pro Fac Peak Influence 730 | 10 249 470 730 286 145 243 . . . . 178 . . . . 472 Initial 239 | . 6 . 198 239 100 101 . . . . 9 . . . . . Average 230 | 5 107 171 484 263 117 181 . . . . 68 . . . . 179 Maximum Alert Level 3 | . 1 2 3 1 . 1 . . . . . . . . . 2 Low Security (%) 52 | 100 85 64 . . 100 65 . . . . 100 . . . . 55 Level 1 27 | . 14 24 30 100 . 34 . . . . . . . . . 39 Level 2 19 | . . 10 66 . . . . . . . . . . . . 4 Level 3 . | . . . 2 . . . . . . . . . . . . . Level 4 . | . . . . . . . . . . . . . . . . . Level 5 . | . . . . . . . . . . . . . . . . . High Security . | . . . . . . . . . . . . . . . . . Max Security . | . . . . . . . . . . . . . . . . . Squads Dispatched 11 | . 2 5 1 . . 1 . . . . . . . . . 2 Investigation 2 | . . 2 . . . . . . . . . . . . . . Extermination 1 | . . . . . . 1 . . . . . . . . . . Reinforcement 6 | . 2 3 1 . . . . . . . . . . . . . Assault . | . . . . . . . . . . . . . . . . . Garrison . | . . . . . . . . . . . . . . . . . Intercept 2 | . . . . . . . . . . . . . . . . 2 Construction Impeded . | . . . . . . . . . . . . . . . . . Haulers Reinforced . | . . . . . . . . . . . . . . . . . Active Scanning Responses . | . . . . . . . . . . . . . . . . . Cargo Convoy Interrupts . | . . . . . . . . . . . . . . . . . Stealth | -11 -10 -9 -8 -7 -7 -7 -7 -7 -7 -6 -6 -6 -6 -6 -5 -5 --------- Run | Scr Mat Mat Mat Fac Was Fac Low Low Zio Pro Fac Low Low Dat Pro Fac Distress Signals 21 | . 3 . 5 . . . . . . 12 1 . . . . . Communications Jammed 9 | . . . . . . . . . . . . . . . . 9 Distress Signals 9 | . . . . . . . . . . . . . . . . 9 Times Spotted 172 | . 33 50 51 . 3 7 4 6 . 4 4 . . 4 . 6 Peak Tracking Total 8 | . 8 7 5 . 4 3 3 4 . 2 4 . . 4 . 4 Tactical Retreats 17 | . 6 1 2 . . 2 1 3 . 1 1 . . . . . Traps | -11 -10 -9 -8 -7 -7 -7 -7 -7 -7 -6 -6 -6 -6 -6 -5 -5 ------- Run | Scr Mat Mat Mat Fac Was Fac Low Low Zio Pro Fac Low Low Dat Pro Fac Traps Triggered 8 | . 3 2 1 1 . 1 . . . . . . . . . . Indirectly . | . . . . . . . . . . . . . . . . . Trap Hack Attempts . | . . . . . . . . . . . . . . . . . Triggered . | . . . . . . . . . . . . . . . . . Disarmed . | . . . . . . . . . . . . . . . . . Reprogrammed . | . . . . . . . . . . . . . . . . . Reused . | . . . . . . . . . . . . . . . . . Traps Extracted . | . . . . . . . . . . . . . . . . . Installed . | . . . . . . . . . . . . . . . . . Triggered . | . . . . . . . . . . . . . . . . . Machines | -11 -10 -9 -8 -7 -7 -7 -7 -7 -7 -6 -6 -6 -6 -6 -5 -5 ---------- Run | Scr Mat Mat Mat Fac Was Fac Low Low Zio Pro Fac Low Low Dat Pro Fac Machines Disabled 7 | . . . 4 . . 2 1 . . . . . . . . . Max in Single Turn 2 | . . . 2 . . 1 1 . . . . . . . . . Garrison Access 3 | . . . . 2 . . . . . . 1 . . . . . Machines Sabotaged . | . . . . . . . . . . . . . . . . . Garrisons Compromised . | . . . . . . . . . . . . . . . . . Overloaded Fab Kills . | . . . . . . . . . . . . . . . . . Fab Network Shutdowns 1 | . . . . . . . . . . . . . . . . 1 Hacking | -11 -10 -9 -8 -7 -7 -7 -7 -7 -7 -6 -6 -6 -6 -6 -5 -5 --------- Run | Scr Mat Mat Mat Fac Was Fac Low Low Zio Pro Fac Low Low Dat Pro Fac Machines Accessed 67 | . 9 12 11 7 . 4 . . 1 . 11 . 1 4 . 7 Terminals 35 | . 6 8 6 3 . 3 . . . . 5 . . . . 4 Fabricators 8 | . . . . 2 . . . . . . 4 . . . . 2 Repair Stations 7 | . 1 2 2 . . . . . . . 1 . . . . 1 Recycling Units 5 | . 2 1 2 . . . . . . . . . . . . . Scanalyzers 2 | . . 1 1 . . . . . . . . . . . . . Garrison Access 4 | . . . . 2 . 1 . . . . 1 . . . . . Total Hacks 203 | . 34 41 35 16 . 8 . . 4 . 28 . 1 23 . 13 Successful 136 | . 16 29 25 9 . 1 . . 4 . 16 . 1 23 . 12 Failed 67 | . 18 12 10 7 . 7 . . . . 12 . . . . 1 Catastrophic 8 | . 1 3 . 1 . 1 . . . . 2 . . . . . Database Lockouts . | . . . . . . . . . . . . . . . . . Manual 88 | . 21 19 20 2 . 7 1 . . . 13 . . . . 5 Terminals 117 | . 26 31 25 7 . 7 . . . . 15 . . . . 6 Fabricators 21 | . . . . 6 . . . . . . 10 . . . . 5 Repair Stations 14 | . 2 5 4 . . . . . . . 1 . . . . 2 Recycling Units 12 | . 6 3 3 . . . . . . . . . . . . . Scanalyzers 5 | . . 2 3 . . . . . . . . . . . . . Garrison Access 6 | . . . . 3 . 1 . . . . 2 . . . . . Terminal Hacks 73 | . 10 13 11 2 . 1 . . 4 . 4 . 1 23 . 4 Record 11 | . . . . . . . . . . . . . . 11 . . Part Schematic 16 | . 2 . 1 . . . . . 4 . 1 . . 5 . 3 Robot Schematic 4 | . . . . . . . . . . . . . . 4 . . Prototype ID Bank 14 | . 4 2 4 . . . . . . . 1 . . 3 . . Open Door 1 | . . . . . . . . . . . . . 1 . . . Branch Access Points 3 | . . 1 . . . 1 . . . . 1 . . . . . Alert Level 2 | . 1 1 . . . . . . . . . . . . . . Unreport Threat 4 | . 1 1 1 . . . . . . . . . . . . 1 Locate Traps 8 | . 2 3 1 2 . . . . . . . . . . . . Maintenance Status 1 | . . 1 . . . . . . . . . . . . . . Hauler Manifests 3 | . . 1 2 . . . . . . . . . . . . . Registered Prototypes 1 | . . . . . . . . . . . 1 . . . . . Zone Layout 5 | . . 3 2 . . . . . . . . . . . . . Fabricator Hacks 14 | . . . . 3 . . . . . . 7 . . . . 4 Load Schematic 8 | . . . . 2 . . . . . . 4 . . . . 2 Build 6 | . . . . 1 . . . . . . 3 . . . . 2 Repair Station Hacks 13 | . 2 5 4 . . . . . . . . . . . . 2 Scan Component 7 | . 1 3 2 . . . . . . . . . . . . 1 Repair 6 | . 1 2 2 . . . . . . . . . . . . 1 Recycling Unit Hacks . | . . . . . . . . . . . . . . . . . Scanalyzer 5 | . . 2 3 . . . . . . . . . . . . . Insert Component 3 | . . 1 2 . . . . . . . . . . . . . Analyze 2 | . . 1 1 . . . . . . . . . . . . . Garrison Access Hacks 3 | . . . . 2 . . . . . . 1 . . . . . Seal Access 3 | . . . . 2 . . . . . . 1 . . . . . Unauthorized Hacks 28 | . 4 9 7 2 . . . . . . 4 . . . . 2 Terminals 24 | . 2 8 6 2 . . . . . . 4 . . . . 2 Track 15 | . 2 6 4 1 . . . . . . 2 . . . . . Assimilate 2 | . . . . . . . . . . . . . . . . 2 Botnet 7 | . . 2 2 1 . . . . . . 2 . . . . . Fabricators . | . . . . . . . . . . . . . . . . . Repair Stations . | . . . . . . . . . . . . . . . . . Recycling Units 4 | . 2 1 1 . . . . . . . . . . . . . Mask 4 | . 2 1 1 . . . . . . . . . . . . . Scanalyzers . | . . . . . . . . . . . . . . . . . Garrison Access . | . . . . . . . . . . . . . . . . . Data Cores Recovered 1 | . . 1 . . . . . . . . . . . . . . Used . | . . . . . . . . . . . . . . . . . Hacking Detections 50 | . 6 9 9 5 . 4 . . . . 11 . . . . 6 Full Trace Events . | . . . . . . . . . . . . . . . . . Feedback Events . | . . . . . . . . . . . . . . . . . Feedback Blocked . | . . . . . . . . . . . . . . . . . Robot Schematics Acquired 4 | . . . . . . . . . . . . . . 4 . . Robots Built . | . . . . . . . . . . . . . . . . . Matter . | . . . . . . . . . . . . . . . . . Time . | . . . . . . . . . . . . . . . . . Total Robot Build Rating . | . . . . . . . . . . . . . . . . . Part Schematics Acquired 17 | . 2 1 2 . . . . . 4 . 1 . . 5 . 2 Parts Built 5 | . . . . . . . . . . . 3 . . . . 2 Matter 1293 | . . . . 146 . . . . . . 478 . . . . 669 Time 338 | . . . . 36 . . . . . . 158 . . . . 144 Total Part Build Rating 21 | . . . . . . . . . . . 8 . . . . 13 Parts Repaired 6 | . 1 2 2 . . . . . . . . . . . . 1 Time 155 | . 26 39 58 . . . . . . . . . . . . 32 Parts Recycled . | . . . . . . . . . . . . . . . . . Recycled Matter . | . . . . . . . . . . . . . . . . . Retrieved Matter . | . . . . . . . . . . . . . . . . . Retrieved Components . | . . . . . . . . . . . . . . . . . Parts Scanalyzed 2 | . . 1 1 . . . . . . . . . . . . . Part Schematics Acquired 2 | . . 1 1 . . . . . . . . . . . . . Parts Damaged . | . . . . . . . . . . . . . . . . . Bothacking | -11 -10 -9 -8 -7 -7 -7 -7 -7 -7 -6 -6 -6 -6 -6 -5 -5 ------------ Run | Scr Mat Mat Mat Fac Was Fac Low Low Zio Pro Fac Low Low Dat Pro Fac Used RIF Installer . | . . . . . . . . . . . . . . . . . Robots Hacked . | . . . . . . . . . . . . . . . . . Non-combat . | . . . . . . . . . . . . . . . . . Combat . | . . . . . . . . . . . . . . . . . Robot Hacks Applied . | . . . . . . . . . . . . . . . . . Relay Couplers Released . | . . . . . . . . . . . . . . . . . Robots Rewired . | . . . . . . . . . . . . . . . . . Allies Hacked . | . . . . . . . . . . . . . . . . . Hacks Repelled . | . . . . . . . . . . . . . . . . . Allies | -11 -10 -9 -8 -7 -7 -7 -7 -7 -7 -6 -6 -6 -6 -6 -5 -5 -------- Run | Scr Mat Mat Mat Fac Was Fac Low Low Zio Pro Fac Low Low Dat Pro Fac Total Allies 3 | . . . . . . . . . 2 . . . . . . 1 Largest Group 2 | . . . . . . . . . 2 2 . . . . . 1 Highest-Rated Group 56 | . . . . . . . . . 56 56 . . . . . 26 Highest-Rated Ally 31 | . . . . . . . . . 31 31 . . . . . 26 Total Orders . | . . . . . . . . . . . . . . . . . Ally Attacks 2 | . . . . . . . . . . 2 . . . . . . Total Damage 34 | . . . . . . . . . . 34 . . . . . . Kills . | . . . . . . . . . . . . . . . . . Allies Corrupted . | . . . . . . . . . . . . . . . . . Allies Melted . | . . . . . . . . . . . . . . . . . Intel | -11 -10 -9 -8 -7 -7 -7 -7 -7 -7 -6 -6 -6 -6 -6 -5 -5 ------- Run | Scr Mat Mat Mat Fac Was Fac Low Low Zio Pro Fac Low Low Dat Pro Fac Robot Analysis Total 126 | . . . . . . . . . . . . . . 126 . . Derelict Logs Recovered 7 | . . . . . . . 1 2 1 . . 1 1 . 1 . Drone Launches . | . . . . . . . . . . . . . . . . . Drone Recoveries . | . . . . . . . . . . . . . . . . . Exploration | -11 -10 -9 -8 -7 -7 -7 -7 -7 -7 -6 -6 -6 -6 -6 -5 -5 ------------- Run | Scr Mat Mat Mat Fac Was Fac Low Low Zio Pro Fac Low Low Dat Pro Fac Turns Passed 9659 | 69 1639 2636 1830 366 31 268 569 200 328 302 400 96 174 88 208 455 Spaces Moved 10625 | 31 933 1269 1083 741 80 558 936 509 855 417 857 296 390 186 456 1028 Core . | . . . . . . . . . . . . . . . . . Treads . | . . . . . . . . . . . . . . . . . Legs 38 | 31 7 . . . . . . . . . . . . . . . Wheels 3043 | . 926 1269 848 . . . . . . . . . . . . . Hover . | . . . . . . . . . . . . . . . . . Flight 7544 | . . . 235 741 80 558 936 509 855 417 857 296 390 186 456 1028 Fastest Speed 26 | 120 95 145 28 28 28 28 28 28 28 28 26 26 26 26 26 26 Average Speed 62 | 120 134 161 121 28 28 28 28 28 28 28 26 26 26 26 26 26 Slowest Speed 170 | 120 155 170 165 28 28 28 28 28 28 28 26 26 26 26 26 28 Overloaded Moves . | . . . . . . . . . . . . . . . . . Propulsion Burnouts . | . . . . . . . . . . . . . . . . . Robots Hopped 8 | . . . . . . . . 2 . . . . . 1 1 4 Cave-ins Triggered . | . . . . . . . . . . . . . . . . . Exploration Rate (%) 54 | 3 98 89 58 17 59 15 89 60 84 48 27 56 57 77 64 24 Regions Visited 16 Branch Regions 8 Pre-discovered Areas 34 | . . . . . . . . . 1 . . . . 33 . . Known Exits Taken 11 | . . . 1 . . 1 1 1 1 1 1 1 1 1 1 . Unknown Exits Taken 3 | 1 1 1 . . . . . . . . . . . . . . Scrap Searched 13 | . . . . . . . 2 4 1 . . 2 2 . 2 . Spaces Dug 80 | . . 7 15 6 . 5 15 2 . 1 13 1 . 5 . 10 Terrain Destroyed 112 | . . 10 44 6 . 5 15 2 . 1 13 1 . 5 . 10 Melee 60 | . . 7 4 6 . 5 6 2 . 1 13 1 . 5 . 10 Projectile 3 | . . 3 . . . . . . . . . . . . . . AOE 49 | . . . 40 . . . 9 . . . . . . . . . Terrain Rammed . | . . . . . . . . . . . . . . . . . Walls Destroyed . | . . . . . . . . . . . . . . . . . Machines Disabled . | . . . . . . . . . . . . . . . . . Actions | -11 -10 -9 -8 -7 -7 -7 -7 -7 -7 -6 -6 -6 -6 -6 -5 -5 --------- Run | Scr Mat Mat Mat Fac Was Fac Low Low Zio Pro Fac Low Low Dat Pro Fac Total 12961 | 44 1249 1614 1397 884 87 650 1225 558 942 593 1007 309 462 212 542 1186 Wait 1594 | . 196 141 79 124 8 70 262 46 87 165 115 8 69 12 86 126 Move 10594 | 30 932 1268 1082 741 79 557 935 504 854 416 856 295 389 183 453 1020 Hop 8 | . . . . . . . . 2 . . . . . 1 1 4 Pick Up 105 | 2 32 19 32 3 . 3 2 . . . 4 . 1 3 . 4 Fast Attach 27 | 1 6 8 5 . . . 2 . . . 2 . . . . 3 Attach 40 | . 5 9 16 2 . . 2 . . . 3 . . . . 3 Detach 4 | . . . . 1 . . 1 . . . . . . . . 2 Swap 101 | . 9 16 29 . . 5 7 4 1 10 7 4 2 2 2 3 Drop 115 | . 25 24 45 2 . 3 4 . . . 4 . 1 3 . 4 Fire 279 | 11 44 121 102 . . . 1 . . . . . . . . . Melee 94 | . . 8 7 11 . 12 9 2 . 2 16 2 . 8 . 17 Ram . | . . . . . . . . . . . . . . . . . Kick . | . . . . . . . . . . . . . . . . . Crush . | . . . . . . . . . . . . . . . . . Escape Stasis . | . . . . . . . . . . . . . . . . . Rewire . | . . . . . . . . . . . . . . . . . Trap . | . . . . . . . . . . . . . . . . . Miscellaneous . | . . . . . . . . . . . . . . . . . Route ------- -11/Scrapyard -10/Materials (discovered 4 exits: *Mat x3 / [*Min]) -9/Materials (discovered 3 exits: *Mat x2 / *Min) -8/Materials -7/Factory (discovered 2 exits: *Fac / *Low) -7/Waste -7/Factory (discovered 4 exits: Sto x2 / *Low x2) -7/Lower Caves -7/Lower Caves -7/Zion -6/Proximity Caves -6/Factory (discovered 2 exits: *Low x2) -6/Lower Caves -6/Lower Caves -6/Data Miner -5/Proximity Caves -5/Factory (discovered 2 exits: *Fac / *Upp) History --------- Turn | Location | Event 1 | -11/Scrapyard | Discovered new exit (range 3) 70 | -11/Scrapyard | Entered Materials 113 | -10/Materials | Repaired Wheel 213 | -10/Materials | Discovered new exit (range 5) 291 | -10/Materials | Discovered new exit (range 11) 323 | -10/Materials | Build established: Mutant 1478 | -10/Materials | Discovered new exit (range 15) 1690 | -10/Materials | Discovered new exit (range 6) 1709 | -10/Materials | Entered another Materials area 1709 | -9/Materials | Evolved 2 slots: Propulsion x1, Utility x1 2031 | -9/Materials | Discovered new exit (range 14) 2269 | -9/Materials | Destroyed 7 combat bots 2455 | -9/Materials | Identified exit to Mines 2518 | -9/Materials | Repaired Lgt. Treads? 3423 | -9/Materials | Repaired Lgt. Armor Plating 3739 | -9/Materials | Core integrity fell below 50% 3782 | -9/Materials | Destroyed 8 combat bots 3943 | -9/Materials | Discovered new exit (range 4) 4345 | -9/Materials | Entered another Materials area 4345 | -8/Materials | Evolved 2 slots: Propulsion x1, Utility x1 4645 | -8/Materials | Repaired Lgt. Armor Plating? 4890 | -8/Materials | Lost 3 parts (1p2u) 5290 | -8/Materials | Build established: Scavenger-Mutant 5332 | -8/Materials | Repaired Arm. Wheel? 5849 | -8/Materials | Build established: Mutant 6027 | -8/Materials | Discovered new exit (range 16) 6174 | -8/Materials | Identified exit to Factory 6175 | -8/Materials | Entered Factory 6175 | -7/Factory | Evolved 2 slots: Utility x2 6360 | -7/Factory | Build established: Scout 6431 | -7/Factory | Discovered new exit (range 15) 6435 | -7/Factory | Identified exit to Lower Caves 6441 | -7/Factory | Discovered new exit (range 9) 6452 | -7/Factory | Identified exit to Factory 6541 | -7/Factory | Sucked down chute 6541 | -7/Factory | Entered Waste 6544 | -7/Waste | Spotted C-40 Crusher 6546 | -7/Waste | Spotted C-40 Crusher 6561 | -7/Waste | Spotted C-40 Crusher 6564 | -7/Waste | Spotted C-40 Crusher 6566 | -7/Waste | Discovered new exit (range 16) 6571 | -7/Waste | Identified exit to Factory 6572 | -7/Waste | Entered Factory 6653 | -7/Factory | Identified exit to Storage 6840 | -7/Factory | Entered Lower Caves 6860 | -7/Lower Caves | Encountered a Warlord checkpoint 6918 | -7/Lower Caves | Learned Factory trap positions 6964 | -7/Lower Caves | Build established: Scavenger-Scout 7391 | -7/Lower Caves | Acquired the password to a Derelict Tinkerer's latest research 7403 | -7/Lower Caves | Discovered new exit (range 5) 7404 | -7/Lower Caves | Identified exit to Lower Caves 7409 | -7/Lower Caves | Entered another Lower Caves area 7434 | -7/Lower Caves | Learned Factory garrison access intel 7499 | -7/Lower Caves | Learned Factory stockpile data 7588 | -7/Lower Caves | Discovered new exit (range 11) 7608 | -7/Lower Caves | Identified exit to Zion 7609 | -7/Lower Caves | Entered Zion 7614 | -7/Zion | Given the Hacking Drone Bay 7681 | -7/Zion | Learned Factory garrison access intel 7720 | -7/Zion | Gained Derelict followers 7760 | -7/Zion | Learned Factory emergency access door positions 7766 | -7/Zion | Learned location of Warlord (-4) 7902 | -7/Zion | Discovered new exit (range 16) 7906 | -7/Zion | Identified exit to Proximity Caves 7937 | -7/Zion | Entered Proximity Caves 7937 | -6/Proximity Caves | Accompanied by 2 allies 8236 | -6/Proximity Caves | Discovered exit to Factory (range 10) 8239 | -6/Proximity Caves | Entered Factory 8239 | -6/Factory | Evolved 2 slots: Propulsion x1, Utility x1 8240 | -6/Factory | Loaded intel: 91 trap records 8243 | -6/Factory | Loaded intel: 4 garrison access locations 8246 | -6/Factory | Identified exit to Lower Caves 8327 | -6/Factory | Fabricated Hacking Suite (x1) 8374 | -6/Factory | Fabricated Hacking Suite? 8571 | -6/Factory | Fabricated Imp. Flight Unit (x1) 8639 | -6/Factory | Entered Lower Caves 8667 | -6/Lower Caves | Encountered a Warlord checkpoint 8687 | -6/Lower Caves | Learned 8 Factory zone layouts 8718 | -6/Lower Caves | Discovered new exit (range 4) 8719 | -6/Lower Caves | Build established: Hacker-Scout 8719 | -6/Lower Caves | Identified exit to Lower Caves 8735 | -6/Lower Caves | Entered another Lower Caves area 8893 | -6/Lower Caves | Learned Factory trap positions 8902 | -6/Lower Caves | Discovered new exit (range 6) 8903 | -6/Lower Caves | Identified exit to Data Miner 8909 | -6/Lower Caves | Entered Data Miner 8909 | -6/Data Miner | Discovered new exit (range 6) 8911 | -6/Data Miner | Identified exit to Proximity Caves 8914 | -6/Data Miner | Met Data Miner 8948 | -6/Data Miner | Learned location of Section 7 (-2) 8948 | -6/Data Miner | Acquired the access code to Warlord's prototype stash 8952 | -6/Data Miner | Received God Mode back door access code from Data Miner 8969 | -6/Data Miner | Destroyed Data Miner 8971 | -6/Data Miner | Found Prototype Hackware 8972 | -6/Data Miner | Interfaced with the Data Conduit 8997 | -6/Data Miner | Entered Proximity Caves 9006 | -5/Proximity Caves | Learned 8 Factory zone layouts 9201 | -5/Proximity Caves | Discovered new exit (range 10) 9203 | -5/Proximity Caves | Identified exit to Factory 9205 | -5/Proximity Caves | Entered Factory 9205 | -5/Factory | Evolved 2 slots: Utility x2 9206 | -5/Factory | Identified exit to Factory 9207 | -5/Factory | Loaded intel: 120 trap records 9208 | -5/Factory | Loaded intel: 246 machine locations 9209 | -5/Factory | Loaded intel: 4 garrison access locations 9268 | -5/Factory | Identified System Mapper 9274 | -5/Factory | Discovered new exit (range 5) 9274 | -5/Factory | Identified exit to Upper Caves 9282 | -5/Factory | Repaired Mni. Grenade Launcher? 9352 | -5/Factory | Fabricated Exp. Sensor Array? 9404 | -5/Factory | Local fabrication network quarantined 9478 | -5/Factory | Fabricated Biomechanical Wings (x1) 9644 | -5/Factory | Intercept squad dispatched 9656 | -5/Factory | Spotted Tracker 9660 | -5/Factory | Self-destructed Last Messages --------------- 09479_ Dropped Mic. Fission Core. 09480_ Acquired Biomechanical Wings. 09489_ Connecting with Terminal... 09528_ Administrator 6a reveals location of hidden door. 09530_ Destroyed Imp. Sensor Array. 09544_ Acquired 10 matter. 09564_ W-25 Informer distress signal jammed. 09567_ Destroyed Imp. Hover Unit. 09568_ W-25 Informer distress signal jammed. 09630_ U-05 Engineer builds a Wall. 09644_ ALERT: Reliable intel has pinpointed LRC-V3, intercept squad en route. 09648_ K-01 Serf cleans the Fusion Modulator. 09650_ Destroyed Imp. Hover Unit. 09653_ K-01 Serf cleans the Fusion Modulator. 09654_ U-05 Engineer builds a Wall. 09656_ K-01 Serf cleans the Fusion Modulator. 09656_ Imp. Flight Unit temporarily disabled. 09660_ Exp. Sensor Array destroyed. 09660_ Imp. Flight Unit temporarily disabled. Map ----- +----------------------------------------------------+ | ?????????????????????????????????????????????????? | | ?????????????????????????????????????????????????? | | ?????????????????????????????????????????????????? | | ?????????????????????????????????????????????????? | | ?????????????????????????????????????????????????? | | ?????????????????????????????????????????????????? | | ?????????????????????????????????????????????????? | | ???????###########???????????????????????????????? | | ???????###########???????????????????????????????? | | ???????## """ ##???????????????????????????????? | | ???????## "Y" ##???????????????????????????????? | | ???????## ##???????????????????????????????? | | ######### ##???????????????????????????????? | | ######### ##???????????????????????????????? | | # """ ##???????????????????????????????? | | # ^ """ ############????"?"?"?"?"????????? | | # """ ############????"?"?"?"?"????????? | | # ^ ## ##????"?"?"?"?"????????? | | # """ ## ##????"?"?"?"?"??""????? | | # R """ ## ! ##????"?"?"?"?"??""????? | | + """ ## ##????"?"?"?"?"??""????? | | # ## !! ##????"?"?"?"?"??G?????? | | # ^ """ ## !! ##????"?"?"?"?"??""?"""? | | # """ ## ! ##????"?"?"?"?"??""?"""? | | # """ ## ##???????????????""?"""? | | # ## @#### ?????????? | | ##+#######+#############s#####+#######+#?????????? | | u ?????????? | | kuk ?????????? | | """ ?????????? | | """ ?????????? | | """ ??k??????? | | ####### #####+#############+??????????? | | # """ # # ??????????? | | """ # """ # """?????????????????????????? | | """ + """ # """?????????????????????????? | | """ # # """?????????????????????????? | | # w""" # ????????????????????????????? | | ??"""?????? ?""" # """?????????????????????????? | | ??"""????????""" ## """?????????????????????????? | | ??"""?????????? ## """?????????????????????????^ | | ?????????????""" ???????????????????????????????^ | | ?????????????""" ???????????????????????????????? | | ?????????????"""?????????????????????????????????? | | ???????^^^^??????????????????????????????????????? | | ???????^?^???"""?????????????????????????????????? | | ?????????????"""?????????????????????????????????? | | """??????????"""?????????????????????????????????? | | """??????????????????????????????????????????????? | | """??????????"""?????????????????????????????????? | +----------------------------------------------------+ Best States ------------- Heat Dissipation 45 Energy Generation 18 Energy Capacity 275 Matter Stores 300 Matter Capacity 300 Sight Range 16 Robot Scan Range 20 Terrain Scan Range 16 Terrain Scan Density 10 Jamming Range 12 Armor Coverage 300 Resistance: KI 20 Propulsion Shielding 66 Utility Shielding 66 Evasion (%) 64 Recoil Reduction 3 Offensive Hacking 50 Defensive Hacking 10 Item Schematics ----------------- Hcp. Storage Unit | -10/Materials | Hacked Lrg. Storage Unit | -10/Materials | Hacked Imp. Flight Unit | -9/Materials | Scanalyzed Lgt. Armor Plating | -8/Materials | Scanalyzed Hacking Suite | -8/Materials | Hacked Hvy. Riot Gun | -7/Zion | Free Battle Rifle | -7/Zion | Free Enh. Flamer | -7/Zion | Free Ripper | -7/Zion | Free Adv. Hacking Suite | -6/Factory | Hacked Combat Drone Bay | -6/Data Miner | Free Lgt. Regenerative Plating | -6/Data Miner | Free Cmb. Gravmag System | -6/Data Miner | Free Exp. Sensor Array | -6/Data Miner | Free Exp. Targeting Computer | -6/Data Miner | Free Biomechanical Wings | -5/Factory | Hacked Exp. Utility Shielding | -5/Factory | Hacked Robot Schematics ------------------ S-27 Virus | -6/Data Miner | Free G-50 Soldier | -6/Data Miner | Free I-36 Angel | -6/Data Miner | Free I-47 Archangel | -6/Data Miner | Free Fabricated ------------ Hacking Suite | x1 | -6/Factory Hacking Suite | x1 | -6/Factory Imp. Flight Unit | x1 | -6/Factory Exp. Sensor Array | x1 | -5/Factory Biomechanical Wings | x1 | -5/Factory Alien Tech Used ----------------- None Achievements -------------- None Challenges ------------ None Game ------ Seed ThrusterRestorationExtractor Manual? 0 Play Time 04:15:36 Cumulative 1185.9 hours Start 2021.09.16 @ 06:49:33 End 2021.09.17 @ 15:15:20 Sessions 21 Manual Loads 0 Difficulty Rogue Special Mode None Game No. 326 Rogue 326 Adventurer 0 Explorer 0 Win Type - Total 41 Types 25/6/7/3/0/0/0/0/0 Lore% 81 Gallery% 86 Achievement% 73 Wizard Run 0 Options --------- ASCII 0 Keyboard 1 Movement Numpad Keybinds 0 Fullscreen 1 Font 24/Smallcaps Map View 76x50 Tactical HUD 1 Map Filters NONE Filters NONE Steam 1 RUN: 24b214c1-c2ae-48a4-a2a4-7113b08f64a4